fUSD/lending_fUSD_20260702
["ID","MTS","AMOUNT","RATE_DAILY","PERIOD"]
[426838730,1782931502000,-549.48,0.00036993,120]
[426838731,1782931502000,-549.48,0.00036993,120]
[426838729,1782931502000,-549.48,0.00036993,120]
[426838732,1782931502000,-549.48,0.00036993,120]
[426838727,1782931502000,-549.48,0.00036993,120]
[426838734,1782931502000,-263.00624667,0.00036993,120]
[426838726,1782931502000,-549.48,0.00036993,120]
[426838725,1782931502000,-549.48,0.00036993,120]
[426838728,1782931502000,-549.48,0.00036993,120]
[426838743,1782931503000,-549.48,0.00036993,120]
[426838736,1782931503000,-549.48,0.00036993,120]
[426838735,1782931503000,-549.48,0.00036993,120]
[426838737,1782931503000,-549.48,0.00036993,120]
[426838738,1782931503000,-549.48,0.00036993,120]
[426838740,1782931503000,-549.48,0.00036993,120]
[426838739,1782931503000,-549.48,0.00036993,120]
[426838741,1782931503000,-549.48,0.00036993,120]
[426838742,1782931503000,-549.48,0.00036993,120]
[426838744,1782931503000,-549.48,0.00036993,120]
[426838745,1782931503000,-549.48,0.00036993,120]
[426838747,1782931503000,-549.48,0.00036993,120]
[426838754,1782931503000,-163.87145285,0.00036993,120]
[426838755,1782931503000,-584.66763765,0.00036993,120]
[426838752,1782931503000,-622.74250268,0.00036993,120]
[426838753,1782931503000,-500.0,0.00036993,120]
[426838756,1782931503000,-500.0,0.00036993,120]
[426838751,1782931503000,-236.36525188,0.00036993,120]
[426838749,1782931503000,-370.91972715,0.00036993,120]
[426838748,1782931503000,-549.64925339,0.00036993,120]
[426838746,1782931503000,-549.48,0.00036993,120]
[426838750,1782931503000,-500.0,0.00036993,120]
[426838766,1782931504000,-500.0,0.00036993,120]
[426838764,1782931504000,-612.74563511,0.00036993,120]
[426838765,1782931504000,-500.0,0.00036993,120]
[426838762,1782931504000,-634.74781464,0.00036993,120]
[426838763,1782931504000,-571.16100243,0.00036993,120]
[426838759,1782931504000,-500.0,0.00036993,120]
[426838760,1782931504000,-500.0,0.00036993,120]
[426838758,1782931504000,-162.91821321,0.00036993,120]
[426838768,1782931504000,-155.41562285,0.00036993,120]
[426838757,1782931504000,-500.0,0.00036993,120]
[426838761,1782931504000,-513.33481701,0.00036993,120]
[426838767,1782931504000,-500.0,0.00036993,120]
[426838781,1782931504000,-500.0,0.00036993,120]
[426838770,1782931504000,-160.09165528,0.00036993,120]
[426838771,1782931504000,-500.0,0.00036993,120]
[426838772,1782931504000,-500.0,0.00036993,120]
[426838774,1782931504000,-500.0,0.00036993,120]
[426838773,1782931504000,-500.0,0.00036993,120]
[426838775,1782931504000,-500.0,0.00036993,120]
[426838776,1782931504000,-500.0,0.00036993,120]
[426838777,1782931504000,-500.0,0.00036993,120]
[426838778,1782931504000,-500.0,0.00036993,120]
[426838779,1782931504000,-500.0,0.00036993,120]
[426838780,1782931504000,-500.0,0.00036993,120]
[426838769,1782931504000,-500.0,0.00036993,120]
[426838790,1782931505000,-500.0,0.00036993,120]
[426838789,1782931505000,-500.0,0.00036993,120]
[426838787,1782931505000,-500.0,0.00036993,120]
[426838788,1782931505000,-500.0,0.00036993,120]
[426838792,1782931505000,-500.0,0.00036993,120]
[426838786,1782931505000,-500.0,0.00036993,120]
[426838784,1782931505000,-500.0,0.00036993,120]
[426838783,1782931505000,-500.0,0.00036993,120]
[426838782,1782931505000,-500.0,0.00036993,120]
[426838785,1782931505000,-500.0,0.00036993,120]
[426838793,1782931505000,-156.95470534,0.00036993,120]
[426838791,1782931505000,-547.50450825,0.00036993,120]
[426838795,1782931505000,-574.25545972,0.00036993,60]
[426838804,1782931505000,-1320.68033464,0.00036993,30]
[426838803,1782931505000,-409.38769051,0.00036993,120]
[426838801,1782931505000,-348419.48277675,0.00036993,61]
[426838802,1782931505000,-390.556421,0.00036993,90]
[426838799,1782931505000,-3705.80401882,0.00036993,120]
[426838794,1782931505000,-191.33536201,0.00036993,120]
[426838798,1782931505000,-390.24533623,0.00036993,30]
[426838796,1782931505000,-221.7580645,0.00036993,120]
[426838797,1782931505000,-266.43581231,0.00036993,120]
[426838805,1782931505000,-278.33613799,0.00036993,120]
[426838800,1782931505000,-179.23816255,0.00036993,30]
[426838815,1782931506000,-232.67237812,0.00036993,120]
[426838807,1782931506000,-168.89915922,0.00036993,120]
[426838806,1782931506000,-404.39726502,0.00036993,120]
[426838808,1782931506000,-351.67041085,0.00036993,65]
[426838809,1782931506000,-1442.2581267,0.00036993,120]
[426838810,1782931506000,-258.53909587,0.00036993,120]
[426838811,1782931506000,-1468.23539273,0.00036993,120]
[426838812,1782931506000,-240.07576954,0.00036993,120]
[426838814,1782931506000,-257.94479799,0.00036993,120]
[426838813,1782931506000,-405.66363012,0.00036993,120]
[426838816,1782931506000,-1131.77431323,0.00036993,120]
[426838817,1782931506000,-214.85783983,0.00036993,120]
[426838819,1782931506000,-162.17128835,0.00036993,120]
[426838828,1782931506000,-6537.33873013,0.00036993,30]
[426838827,1782931506000,-50209.9,0.00036993,120]
[426838825,1782931506000,-201.82211066,0.00036993,120]
[426838824,1782931506000,-606.08258084,0.00036993,120]
[426838829,1782931506000,-39506.2314538,0.00036993,31]
[426838823,1782931506000,-1664.53479104,0.00036993,60]
[426838820,1782931506000,-1168.38231621,0.00036993,120]
[426838821,1782931506000,-240.00245859,0.00036993,120]
[426838818,1782931506000,-520.10619874,0.00036993,30]
[426838822,1782931506000,-230.13322598,0.00036993,120]
[426838839,1782931507000,-514.87,0.00036993,120]
[426838830,1782931507000,-5798.56407892,0.00036993,30]
[426838832,1782931507000,-2427.49836235,0.00036993,30]
[426838831,1782931507000,-2709.46984445,0.00036993,30]
[426838834,1782931507000,-2789.30134038,0.00036993,30]
[426838833,1782931507000,-1800.0,0.00036993,120]
[426838837,1782931507000,-514.87,0.00036993,120]
[426838835,1782931507000,-100000.0,0.00036993,120]
[426838836,1782931507000,-1702.36264166,0.00036993,31]
[426838838,1782931507000,-514.87,0.00036993,120]
[426838840,1782931507000,-514.87,0.00036993,120]
[426838853,1782931507000,-514.87,0.00036993,120]
[426838842,1782931507000,-514.87,0.00036993,120]
[426838841,1782931507000,-514.87,0.00036993,120]
[426838851,1782931507000,-514.87,0.00036993,120]
[426838850,1782931507000,-514.87,0.00036993,120]
[426838849,1782931507000,-514.87,0.00036993,120]
[426838847,1782931507000,-514.87,0.00036993,120]
[426838852,1782931507000,-514.87,0.00036993,120]
[426838846,1782931507000,-514.87,0.00036993,120]
[426838845,1782931507000,-514.87,0.00036993,120]
[426838843,1782931507000,-514.87,0.00036993,120]
[426838844,1782931507000,-514.87,0.00036993,120]
[426838848,1782931507000,-514.87,0.00036993,120]
[426838854,1782931508000,-514.87,0.00036993,120]
[426838855,1782931508000,-514.87,0.00036993,120]
[426838857,1782931508000,-514.87,0.00036993,120]
[426838856,1782931508000,-514.87,0.00036993,120]
[426838858,1782931508000,-514.87,0.00036993,120]
[426838859,1782931508000,-514.87,0.00036993,120]
[426838860,1782931508000,-515.05,0.00036993,120]
[426838862,1782931508000,-211.3879052,0.00036993,120]
[426838861,1782931508000,-507.0,0.00036993,120]
[426838863,1782931508000,-569.70405,0.00036993,120]
[426838865,1782931508000,-500.0,0.00036993,120]
[426838866,1782931508000,-500.0,0.00036993,120]
[426838874,1782931508000,-243.5886549,0.00036993,120]
[426838873,1782931508000,-4500.00000045,0.00036993,120]
[426838872,1782931508000,-2646.32656684,0.00036993,120]
[426838871,1782931508000,-597.3048707,0.00036993,120]
[426838864,1782931508000,-502.08,0.00036993,120]
[426838868,1782931508000,-2605.35278988,0.00036993,30]
[426838869,1782931508000,-500.0,0.00036993,120]
[426838867,1782931508000,-204.69150458,0.00036993,120]
[426838870,1782931508000,-500.0,0.00036993,120]
[426838884,1782931509000,-604.18,0.00036993,120]
[426838875,1782931509000,-580.0,0.00036993,120]
[426838877,1782931509000,-500.0,0.00036993,120]
[426838876,1782931509000,-500.0,0.00036993,120]
[426838879,1782931509000,-500.0,0.00036993,120]
[426838878,1782931509000,-252.19439936,0.00036993,120]
[426838881,1782931509000,-562.05,0.00036993,120]
[426838880,1782931509000,-500.0,0.00036993,120]
[426838882,1782931509000,-370.0,0.00036993,30]
[426838883,1782931509000,-604.18,0.00036993,120]
[426838885,1782931509000,-604.18,0.00036993,120]
[426838896,1782931509000,-604.18,0.00036993,120]
[426838888,1782931509000,-604.18,0.00036993,120]
[426838887,1782931509000,-604.18,0.00036993,120]
[426838890,1782931509000,-604.18,0.00036993,120]
[426838889,1782931509000,-604.18,0.00036993,120]
[426838891,1782931509000,-604.18,0.00036993,120]
[426838893,1782931509000,-604.18,0.00036993,120]
[426838892,1782931509000,-604.18,0.00036993,120]
[426838894,1782931509000,-604.18,0.00036993,120]
[426838895,1782931509000,-604.18,0.00036993,120]
[426838886,1782931509000,-604.18,0.00036993,120]
[426838897,1782931509000,-604.18,0.00036993,120]
[426838905,1782931510000,-604.18,0.00036993,120]
[426838903,1782931510000,-604.18,0.00036993,120]
[426838904,1782931510000,-604.18,0.00036993,120]
[426838902,1782931510000,-604.18,0.00036993,120]
[426838906,1782931510000,-604.18264389,0.00036993,120]
[426838898,1782931510000,-604.18,0.00036993,120]
[426838900,1782931510000,-604.18,0.00036993,120]
[426838899,1782931510000,-604.18,0.00036993,120]
[426838901,1782931510000,-604.18,0.00036993,120]
[426838907,1782931510000,-261.77,0.00036993,30]
[426838918,1782931510000,-226.56239262,0.00036993,120]
[426838908,1782931510000,-390.0,0.00036993,120]
[426838910,1782931510000,-15558.8794834,0.00036993,120]
[426838911,1782931510000,-500.0,0.00036993,120]
[426838912,1782931510000,-500.00000069,0.00036993,120]
[426838913,1782931510000,-3502.25021279,0.00036993,120]
[426838914,1782931510000,-500.0,0.00036993,120]
[426838915,1782931510000,-271.20435613,0.00036993,120]
[426838916,1782931510000,-2881.50366385,0.00036993,63]
[426838917,1782931510000,-303.0,0.00036993,120]
[426838909,1782931510000,-650308.99625337,0.00036993,30]
[426838929,1782931511000,-500.0,0.00036993,120]
[426838928,1782931511000,-500.0,0.00036993,120]
[426838926,1782931511000,-500.0,0.00036993,120]
[426838925,1782931511000,-284.58235139,0.00036993,120]
[426838924,1782931511000,-500.0,0.00036993,120]
[426838919,1782931511000,-271.54,0.00036993,120]
[426838921,1782931511000,-500.0,0.00036993,120]
[426838920,1782931511000,-500.0,0.00036993,120]
[426838922,1782931511000,-500.0,0.00036993,120]
[426838927,1782931511000,-500.0,0.00036993,120]
[426838923,1782931511000,-500.0,0.00036993,120]
[426838931,1782931511000,-221.4956859,0.00036993,120]
[426838943,1782931511000,-285.29603194,0.00036993,120]
[426838932,1782931511000,-155.42185843,0.00036993,120]
[426838942,1782931511000,-552.26386024,0.00036993,120]
[426838941,1782931511000,-165.21043601,0.00036993,120]
[426838940,1782931511000,-552.26386025,0.00036993,120]
[426838939,1782931511000,-639.08884139,0.00036993,120]
[426838938,1782931511000,-154.24302839,0.00036993,120]
[426838930,1782931511000,-500.0,0.00036993,120]
[426838936,1782931511000,-499.61555792,0.00036993,120]
[426838935,1782931511000,-192.34793641,0.00036993,120]
[426838933,1782931511000,-217.73167012,0.00036993,120]
[426838934,1782931511000,-500.0,0.00036993,120]
[426838937,1782931511000,-169.47132215,0.00036993,120]
[426838953,1782931512000,-245.87431771,0.00036993,120]
[426838944,1782931512000,-199.15217538,0.00036993,106]
[426838947,1782931512000,-153.71807307,0.00036993,120]
[426838946,1782931512000,-566.14268229,0.00036993,120]
[426838945,1782931512000,-388.78012885,0.00036993,120]
[426838948,1782931512000,-448.52759065,0.00036993,120]
[426838949,1782931512000,-297.55188159,0.00036993,120]
[426838950,1782931512000,-188.55616057,0.00036993,120]
[426838951,1782931512000,-164.49673797,0.00036993,120]
[426838952,1782931512000,-246.30816781,0.00036993,120]
[426838954,1782931512000,-186.2671655,0.00036993,120]
[426838955,1782931512000,-163.58154866,0.00036993,120]
[426838956,1782931512000,-436.69275808,0.00036993,120]
[426838966,1782931512000,-152.91418796,0.00036993,120]
[426838965,1782931512000,-163.21349759,0.00036993,120]
[426838964,1782931512000,-242.38225733,0.00036993,120]
[426838963,1782931512000,-159.95624431,0.00036993,120]
[426838962,1782931512000,-157.22180307,0.00036993,120]
[426838967,1782931512000,-329.34215674,0.00036993,120]
[426838959,1782931512000,-330.66680988,0.00036993,120]
[426838961,1782931512000,-193.1289416,0.00036993,120]
[426838957,1782931512000,-160.5800095,0.00036993,120]
[426838958,1782931512000,-245.41234826,0.00036993,120]
[426838960,1782931512000,-155.9243975,0.00036993,120]
[426838978,1782931513000,-173.73447238,0.00036993,120]
[426838968,1782931513000,-305.24207959,0.00036993,120]
[426838971,1782931513000,-322.19628532,0.00036993,120]
[426838969,1782931513000,-500.0,0.00036993,120]
[426838970,1782931513000,-585.97848124,0.00036993,120]
[426838973,1782931513000,-213.97436643,0.00036993,120]
[426838972,1782931513000,-292.63028668,0.00036993,120]
[426838974,1782931513000,-201.0331645,0.00036993,120]
[426838975,1782931513000,-513.19415122,0.00036993,120]
[426838976,1782931513000,-500.0,0.00036993,120]
[426838977,1782931513000,-169.59946738,0.00036993,120]
[426838991,1782931513000,-207.44814442,0.00036993,120]
[426838980,1782931513000,-532.94791,0.00036993,120]
[426838979,1782931513000,-493.15686304,0.00036993,120]
[426838990,1782931513000,-177.81027591,0.00036993,120]
[426838989,1782931513000,-317.43915118,0.00036993,120]
[426838987,1782931513000,-1431.2043,0.00036993,120]
[426838986,1782931513000,-169.97041218,0.00036993,120]
[426838988,1782931513000,-638.55848311,0.00036993,120]
[426838984,1782931513000,-166.67744574,0.00036993,120]
[426838981,1782931513000,-550.32086086,0.00036993,120]
[426838983,1782931513000,-203.55437968,0.00036993,120]
[426838982,1782931513000,-180.63723131,0.00036993,120]
[426838985,1782931513000,-226.90132624,0.00036993,120]
[426838998,1782931514000,-314.77513497,0.00036993,120]
[426839001,1782931514000,-369.53493223,0.00036993,120]
[426839000,1782931514000,-201.73654933,0.00036993,120]
[426838999,1782931514000,-201.97717054,0.00036993,120]
[426838997,1782931514000,-2357.999999,0.00036993,120]
[426838992,1782931514000,-645.37148575,0.00036993,120]
[426838994,1782931514000,-489.8940801,0.00036993,120]
[426838995,1782931514000,-500.0,0.00036993,120]
[426839002,1782931514000,-500.0,0.00036993,120]
[426838993,1782931514000,-500.0,0.00036993,120]
[426838996,1782931514000,-282.94056534,0.00036993,120]
[426839003,1782931514000,-500.0,0.00036993,120]
[426839015,1782931514000,-174.0374125,0.00036993,120]
[426839004,1782931514000,-295.1242,0.00036993,120]
[426839017,1782931514000,-164.93633299,0.00036993,120]
[426839016,1782931514000,-150.64932458,0.00036993,120]
[426839014,1782931514000,-176.61538228,0.00036993,120]
[426839012,1782931514000,-351.22644178,0.00036993,120]
[426839013,1782931514000,-172.75543339,0.00036993,120]
[426839005,1782931514000,-191.46448645,0.00036993,120]
[426839010,1782931514000,-233.82326275,0.00036993,120]
[426839009,1782931514000,-500.0,0.00036993,120]
[426839008,1782931514000,-189.46992778,0.00036993,120]
[426839007,1782931514000,-230.73491427,0.00036993,120]
[426839006,1782931514000,-206.21103118,0.00036993,120]
[426839011,1782931514000,-153.29478044,0.00036993,120]
[426839027,1782931515000,-536.36490208,0.00036993,120]
[426839028,1782931515000,-296.22992684,0.00036993,120]
[426839026,1782931515000,-500.0,0.00036993,120]
[426839025,1782931515000,-500.0,0.00036993,120]
[426839024,1782931515000,-161.37317547,0.00036993,120]
[426839019,1782931515000,-156.35214381,0.00036993,120]
[426839023,1782931515000,-284.74901043,0.00036993,120]
[426839021,1782931515000,-161.91348053,0.00036993,120]
[426839020,1782931515000,-592.7542,0.00036993,120]
[426839029,1782931515000,-411.90102356,0.00036993,120]
[426839022,1782931515000,-175.30953636,0.00036993,120]
[426839018,1782931515000,-274.83390217,0.00036993,120]
[426839030,1782931515000,-500.0,0.00036993,120]
[426839033,1782931515000,-180.59575171,0.00036993,120]
[426839031,1782931515000,-225.95810873,0.00036993,120]
[426839042,1782931515000,-184.51535238,0.00036993,120]
[426839041,1782931515000,-173.6464257,0.00036993,120]
[426839039,1782931515000,-152.79291774,0.00036993,120]
[426839037,1782931515000,-192.54658715,0.00036993,120]
[426839040,1782931515000,-165.50606373,0.00036993,120]
[426839036,1782931515000,-209.29743078,0.00036993,120]
[426839035,1782931515000,-154.19660473,0.00036993,120]
[426839034,1782931515000,-193.08957395,0.00036993,120]
[426839032,1782931515000,-339.00834367,0.00036993,120]
[426839038,1782931515000,-152.94122685,0.00036993,120]
[426839051,1782931516000,-162.61655489,0.00036993,120]
[426839054,1782931516000,-177.70844601,0.00036993,120]
[426839052,1782931516000,-155.02672148,0.00036993,120]
[426839050,1782931516000,-164.62338068,0.00036993,120]
[426839048,1782931516000,-159.73846769,0.00036993,120]
[426839043,1782931516000,-174.29677496,0.00036993,120]
[426839047,1782931516000,-150.749417,0.00036993,120]
[426839045,1782931516000,-4000.0,0.00036993,30]
[426839046,1782931516000,-161.15314316,0.00036993,120]
[426839044,1782931516000,-157.39380823,0.00036993,120]
[426839049,1782931516000,-174.16750971,0.00036993,120]
[426839053,1782931516000,-155.3793547,0.00036993,120]
[426839056,1782931516000,-156.01723639,0.00036993,120]
[426839055,1782931516000,-163.48727258,0.00036993,120]
[426839057,1782931516000,-167.53674929,0.00036993,120]
[426839067,1782931516000,-166.21178591,0.00036993,120]
[426839066,1782931516000,-2428.47703079,0.00036993,120]
[426839064,1782931516000,-172.30516909,0.00036993,120]
[426839065,1782931516000,-154.98042922,0.00036993,120]
[426839068,1782931516000,-152.44727714,0.00036993,120]
[426839061,1782931516000,-166.52140684,0.00036993,120]
[426839062,1782931516000,-170.57141076,0.00036993,120]
[426839059,1782931516000,-232.90218237,0.00036993,120]
[426839060,1782931516000,-160.40565626,0.00036993,120]
[426839058,1782931516000,-179.1988909,0.00036993,120]
[426839063,1782931516000,-172.97811116,0.00036993,120]
[426839080,1782931517000,-594.05097512,0.00036993,120]
[426839076,1782931517000,-489.48357372,0.00036993,120]
[426839077,1782931517000,-268.72828191,0.00036993,120]
[426839075,1782931517000,-490.98935169,0.00036993,30]
[426839072,1782931517000,-234.03102392,0.00036993,120]
[426839073,1782931517000,-3469.34095871,0.00036993,30]
[426839071,1782931517000,-271.9,0.00036993,120]
[426839069,1782931517000,-158.23839351,0.00036993,120]
[426839078,1782931517000,-267.0497396,0.00036993,120]
[426839074,1782931517000,-800.14692268,0.00036993,90]
[426839079,1782931517000,-265.97046373,0.00036993,120]
[426839070,1782931517000,-585.0,0.00036993,120]
[426839082,1782931517000,-2995.33099976,0.00036993,120]
[426839092,1782931517000,-509.84135536,0.00036993,120]
[426839091,1782931517000,-150.89416339,0.00036993,120]
[426839089,1782931517000,-353.38848656,0.00036993,120]
[426839088,1782931517000,-748.0,0.00036993,120]
[426839090,1782931517000,-152.79039549,0.00036993,30]
[426839087,1782931517000,-157.31049128,0.00036993,120]
[426839085,1782931517000,-359.89594529,0.00036993,120]
[426839083,1782931517000,-278.27591135,0.00036993,120]
[426839084,1782931517000,-199.17828666,0.00036993,120]
[426839086,1782931517000,-170.96302793,0.00036993,30]
[426839081,1782931517000,-18245.35780357,0.00036993,120]
[426839102,1782931518000,-161.38448125,0.00036993,120]
[426839093,1782931518000,-164.92052476,0.00036993,120]
[426839094,1782931518000,-375.95775484,0.00036993,120]
[426839095,1782931518000,-157.79597086,0.00036993,120]
[426839096,1782931518000,-157.66427102,0.00036993,120]
[426839097,1782931518000,-228.15501584,0.00036993,120]
[426839099,1782931518000,-164.59931761,0.00036993,120]
[426839098,1782931518000,-3779.69442104,0.00036993,30]
[426839100,1782931518000,-156.65610538,0.00036993,30]
[426839101,1782931518000,-994.8414768,0.00036993,120]
[426839104,1782931518000,-1914.1580853,0.00036993,120]
[426839106,1782931518000,-329.51252876,0.00036993,120]
[426839107,1782931518000,-10962.60101775,0.00036993,120]
[426839105,1782931518000,-625.32044465,0.00036993,120]
[426839108,1782931518000,-159.39417342,0.00036993,120]
[426839109,1782931518000,-161.65588409,0.00036993,30]
[426839111,1782931518000,-235.51872272,0.00036993,120]
[426839112,1782931518000,-150.6163419,0.00036993,120]
[426839110,1782931518000,-437.20918304,0.00036993,120]
[426839114,1782931518000,-618.20994545,0.00036993,120]
[426839113,1782931518000,-487.30166612,0.00036993,120]
[426839103,1782931518000,-605.81415763,0.00036993,120]
[426839122,1782931519000,-662.89591285,0.00036993,120]
[426839121,1782931519000,-180.30932482,0.00036993,30]
[426839120,1782931519000,-2057.8001997,0.00036993,120]
[426839118,1782931519000,-351.1203958,0.00036993,120]
[426839116,1782931519000,-537.96895559,0.00036993,120]
[426839117,1782931519000,-163.71260861,0.00036993,120]
[426839115,1782931519000,-157.24962157,0.00036993,120]
[426839124,1782931519000,-1388.5475,0.00036993,120]
[426839119,1782931519000,-164.08018937,0.00036993,120]
[426839123,1782931519000,-1943800.0,0.00036993,30]
[426839135,1782931519000,-543.2049352,0.00036993,120]
[426839126,1782931519000,-2042.6864,0.00036993,120]
[426839127,1782931519000,-4577.53137672,0.00036993,120]
[426839128,1782931519000,-1728.46,0.00036993,120]
[426839129,1782931519000,-413.57958237,0.00036993,120]
[426839130,1782931519000,-500.0,0.00036993,120]
[426839131,1782931519000,-500.0,0.00036993,120]
[426839132,1782931519000,-500.0,0.00036993,120]
[426839133,1782931519000,-500.0,0.00036993,120]
[426839134,1782931519000,-500.0,0.00036993,120]
[426839136,1782931519000,-500.0,0.00036993,120]
[426839125,1782931519000,-1086.83788315,0.00036993,120]
[426839137,1782931520000,-500.0,0.00036993,120]
[426839138,1782931520000,-500.0,0.00036993,120]
[426839139,1782931520000,-340.07345346,0.00036993,120]
[426839140,1782931520000,-191.99682133,0.00036993,120]
[426839141,1782931520000,-166395.86339978,0.00036993,120]
[426839145,1782931520000,-235.52716473,0.00036993,120]
[426839143,1782931520000,-100000.0,0.00036993,30]
[426839144,1782931520000,-641.30395138,0.00036993,120]
[426839146,1782931520000,-813561.38673893,0.00036993,30]
[426839147,1782931520000,-32114.97613087,0.00036993,120]
[426839148,1782931520000,-468272.85974999,0.00036993,30]
[426839142,1782931520000,-104361.80743609,0.00036993,30]
[426839152,1782931523000,-1062.51,0.0002789,120]
[426839150,1782931523000,-1062.51,0.00027397,120]
[426839149,1782931523000,-160.27,0.00025427,120]
[426839151,1782931523000,-1062.51,0.00027644,120]
[426839156,1782931523000,-1062.51,0.00028877,120]
[426839153,1782931523000,-1062.51,0.00028137,120]
[426839155,1782931523000,-1062.51,0.0002863,120]
[426839157,1782931523000,-237.16,0.00029015,120]
[426839158,1782931523000,-1062.51,0.00029123,120]
[426839154,1782931523000,-1062.51,0.00028384,120]
[426839163,1782931524000,-1062.51,0.0003011,120]
[426839162,1782931524000,-185.80614064,0.0003,120]
[426839161,1782931524000,-1062.51,0.00029863,120]
[426839160,1782931524000,-1062.51,0.00029616,120]
[426839159,1782931524000,-1062.51,0.0002937,120]
[426839188,1782931549000,189.66944165,0.00027205,120]
[426839349,1782931834000,-901.0,0.00017644,2]
[426839347,1782931834000,-882.0,0.00017644,2]
[426839346,1782931834000,-890.0,0.00017644,2]
[426839348,1782931834000,-151.0,0.00017644,2]
[426839359,1782931834000,-152.0,0.00017644,2]
[426839350,1782931834000,-453.59002081,0.00017644,2]
[426839356,1782931834000,-150.0,0.00017644,2]
[426839351,1782931834000,-151.0,0.00017644,2]
[426839352,1782931834000,-153.0,0.00017644,2]
[426839344,1782931834000,-151.0,0.00017644,2]
[426839358,1782931834000,-152.0,0.00017644,2]
[426839354,1782931834000,-150.0,0.00017644,2]
[426839353,1782931834000,-150.0,0.00017644,2]
[426839345,1782931834000,-902.0,0.00017644,2]
[426839342,1782931834000,-197.19,0.00016996,2]
[426839343,1782931834000,-997.69246004,0.00017544,2]
[426839338,1782931834000,-287.06431718,0.0001439,2]
[426839340,1782931834000,-4067.02677814,0.0001439,2]
[426839341,1782931834000,-150.0,0.00014533,2]
[426839357,1782931834000,-151.0,0.00017644,2]
[426839355,1782931834000,-152.0,0.00017644,2]
[426839360,1782931834000,-151.0,0.00017644,2]
[426839375,1782931834000,-468.14582551,0.00017645,2]
[426839363,1782931834000,-907.0,0.00017644,2]
[426839361,1782931834000,-151.0,0.00017644,2]
[426839388,1782931834000,-153.0,0.00017645,2]
[426839386,1782931834000,-897.0,0.00017645,2]
[426839382,1782931834000,-150.0,0.00017645,2]
[426839380,1782931834000,-915.0,0.00017645,2]
[426839379,1782931834000,-740.64950485,0.00017645,2]
[426839377,1782931834000,-150.0,0.00017645,2]
[426839376,1782931834000,-277.51753369,0.00017645,2]
[426839378,1782931834000,-164.35049515,0.00017645,2]
[426839387,1782931834000,-916.0,0.00017645,2]
[426839384,1782931834000,-901.0,0.00017645,2]
[426839374,1782931834000,-139.3366408,0.00017645,2]
[426839367,1782931834000,-152.0,0.00017645,2]
[426839365,1782931834000,-393.25117015,0.00017645,2]
[426839362,1782931834000,-888.0,0.00017644,2]
[426839364,1782931834000,-521.74882985,0.00017645,2]
[426839389,1782931834000,-609.35761397,0.00017645,2]
[426839371,1782931834000,-226.25642523,0.00017645,2]
[426839372,1782931834000,-314.69518012,0.00017645,2]
[426839373,1782931834000,-348.04839465,0.00017645,2]
[426839369,1782931834000,-907.0,0.00017645,2]
[426839426,1782931837000,-888.0,0.00017645,2]
[426839412,1782931837000,-897.0,0.00017645,2]
[426839423,1782931837000,-892.0,0.00017645,2]
[426839425,1782931837000,-904.0,0.00017645,2]
[426839424,1782931837000,-151.0,0.00017645,2]
[426839416,1782931837000,-882.0,0.00017645,2]
[426839414,1782931837000,-151.0,0.00017645,2]
[426839408,1782931837000,-150.0,0.00017645,2]
[426839413,1782931837000,-897.0,0.00017645,2]
[426839410,1782931837000,-101.04048051,0.00017645,2]
[426839406,1782931837000,-397.90238603,0.00017645,2]
[426839404,1782931837000,-502.09761397,0.00017645,2]
[426839402,1782931837000,-278.64238603,0.00017645,2]
[426839415,1782931837000,-895.0,0.00017645,2]
[426839411,1782931837000,-782.95951949,0.00017645,2]
[426839422,1782931837000,-888.0,0.00017645,2]
[426839419,1782931837000,-889.0,0.00017645,2]